Cogmind - Beta 9.6 @@@ ROGUE MODE // 2020.05.28 @ 11:18:16 Player: Qethsegol Result: Destroyed by S-10 Pest with Light Assault Rifle Performance ------------- Evolutions (0) 0 Regions Visited (1) 200 Robots Destroyed (8) 40 Value Destroyed (175) 175 Prototype IDs (0) 0 Alien Tech Used (0) 0 Bonus (0) 0 TOTAL SCORE: 415 Bonus ------- None Cogmind --------- Core Integrity 0/250 Matter 300/300 Energy 100/100 System Corruption 0% Temperature Cool (0) Movement Treading (160) Location -10/Materials Parts ------- > --- POWER (1) -------- (None) > --- PROPULSION (2) --- Light Treads > --- UTILITY (2) ------ Medium Storage Unit Medium Storage Unit > --- WEAPON (2) ------- Hammer > --- INVENTORY (12) --- Light Treads Aluminum Leg Aluminum Leg Compact Wheel Heat Sink Small Storage Unit Assault Rifle Assault Rifle Hammer Hammer Peak State ------------ > --- POWER ------------ Light Ion Engine > --- PROPULSION ------- Wheel Compact Wheel > --- UTILITY ---------- Medium Storage Unit Medium Storage Unit > --- WEAPON ----------- Assault Rifle Assault Rifle > --- INVENTORY -------- Ion Engine Light Treads Light Treads Aluminum Leg Aluminum Leg Heat Sink Small Storage Unit Small Laser Hammer Hammer [Rating: 8] Favorites ----------- Power Ion Engine Engine Ion Engine Propulsion Light Treads Treads Light Treads Wheel Compact Wheel Utility Medium Storage Unit Storage Medium Storage Unit Weapon Hammer Energy Gun Small Laser Ballistic Gun Assault Rifle Impact Weapon Hammer Build | -11 -10 ------- Run | Scr Mat Slots Evolved . | . . Power . | . . Propulsion . | . . Utility . | . . Weapon . | . . Parts Attached 17 | 7 10 Power 4 | 2 2 Engine 4 | 2 2 Core . | . . Reactor . | . . Propulsion 4 | 2 2 Treads 2 | . 2 Leg . | . . Wheel 2 | 2 . Hover . | . . Flight . | . . Utility 3 | 1 2 Device . | . . Storage 3 | 1 2 Processor . | . . Hackware . | . . Protection . | . . Artifact . | . . Weapon 6 | 2 4 Energy Gun 1 | . 1 Energy Cannon . | . . Ballistic Gun 2 | 2 . Ballistic Cannon . | . . Launcher . | . . Special Weapon . | . . Impact Weapon 3 | . 3 Slashing Weapon . | . . Piercing Weapon . | . . Special Melee Weapon . | . . Unidentified Prototypes . | . . Parts Lost 5 | . 5 Power 1 | . 1 Propulsion 2 | . 2 Utility . | . . Weapon 2 | . 2 Highest Loss Streak 3 | . 3 Average Slot Usage (%) 96 | . 96 Engine 12 | . 12 Treads 11 | . 11 Wheel 15 | . 15 Storage 27 | . 27 Energy Gun 2 | . 2 Ballistic Gun 10 | . 10 Impact Weapon 14 | . 14 Naked Turns . | . . Heaviest Build 25 | 13 25 Greatest Support 40 | 26 40 Greatest Overweight (x) 1 | . 1 Average Overweight (x) . | . . Largest Inventory Capacity 12 | 6 12 Average Capacity 10 | 5 11 Most Carried 12 | 6 12 Average Carried 8 | 3 9 Final Capacity 12 | 6 12 Final Carried 10 | 6 10 Class Distribution -------------------- 100% | Mutant Dominant Class ---------------- Mutant | -10/Materials Resources | -11 -10 ----------- Run | Scr Mat Matter Collected 442 | 228 214 Remotely . | . . Salvage Created 404 | . 404 Parts 12 | . 12 Haulers Intercepted 2 | . 2 Recyclers Shooed 1 | . 1 Parts Field Recycled . | . . Retrieved Matter . | . . Parts Self-Destructed . | . . Prevented . | . . Kills | -11 -10 ------- Run | Scr Mat Combat Hostiles Destroyed 4 | . 4 Guns 1 | . 1 Classes Destroyed 4 | . 4 Hauler 2 | . 2 Recycler 1 | . 1 Watcher 1 | . 1 Grunt 4 | . 4 Best Kill Streak 2 | . 2 Combat Bots Only 1 | . 1 Max Kills in Single Turn 1 | . 1 Gunslinging . | . . Exploded . | . . Melee . | . . Uniques/NPCs Destroyed . | . . Combat | -11 -10 -------- Run | Scr Mat Damage Taken 835 | . 835 Core 254 | . 254 Absorbed by Shields . | . . Core Remaining (%) 100 | 100 . Volleys Fired 17 | . 17 Largest 2 | . 2 Hottest 40 | . 40 Shots Fired 29 | . 29 Gun 29 | . 29 Cannon . | . . Launcher . | . . Special . | . . Kinetic 24 | . 24 Thermal 5 | . 5 Explosive . | . . Electromagnetic . | . . Robot Hit Streak 3 | . 3 Robot Miss Streak 2 | . 2 Penetration Max . | . . Secondary Targets . | . . Shots Hit Robots 42 | . 42 Core Hits 8 | . 8 Critical Hits . | . . Critical Kills . | . . Critical Parts Destroyed . | . . Melee Attacks 37 | . 37 Impact 37 | . 37 Slashing . | . . Piercing . | . . Sneak Attacks 1 | . 1 Combat Hostiles . | . . Follow-up Attacks 2 | . 2 Damage Inflicted 641 | . 641 Guns 180 | . 180 Cannons . | . . Explosions . | . . Melee 461 | . 461 Ramming . | . . Kinetic 136 | . 136 Thermal 44 | . 44 Explosive . | . . Electromagnetic . | . . Impact 461 | . 461 Slashing . | . . Piercing . | . . Highest Corruption . | . . Average Corruption . | . . Corruption Purged . | . . Overload Shots . | . . Overflow Damage 66 | . 66 Projectiles . | . . Explosions . | . . Melee 66 | . 66 Knockbacks . | . . Impact . | . . Kinetic . | . . Secondary . | . . Self-Inflicted Damage . | . . Shots . | . . Rammed . | . . Targets Rammed . | . . Kicked . | . . Crushed . | . . Highest Temperature 12 | . 12 Average Temperature 8 | . 8 Received Heat Transfer 366 | . 366 Siege Activations . | . . Robots Corrupted . | . . Combat Hostiles . | . . Parts Fried 5 | . 5 Impact Corruptions 5 | . 5 Robots Melted . | . . Combat Hostiles . | . . Parts Melted . | . . Heat Transferred 100 | . 100 Parts Sabotaged . | . . Parts Stolen . | . . Parts Stripped . | . . Power Chain Reactions . | . . Missiles Intercepted . | . . Alert | -11 -10 ------- Run | Scr Mat Peak Influence 132 | . 132 Average Influence 52 | . 63 Maximum Alert Level . | . . Low Security (%) 100 | 100 100 Level 1 . | . . Level 2 . | . . Level 3 . | . . Level 4 . | . . Level 5 . | . . High Security . | . . Max Security . | . . Squads Dispatched 1 | . 1 Investigation 1 | . 1 Extermination . | . . Reinforcement . | . . Assault . | . . Garrison . | . . Intercept . | . . Construction Impeded . | . . Haulers Reinforced . | . . Stealth | -11 -10 --------- Run | Scr Mat Distress Signals 2 | . 2 Communications Jammed . | . . Distress Signals . | . . Times Spotted 13 | . 13 Peak Tracking Total 5 | . 5 Tactical Retreats 1 | . 1 Traps | -11 -10 ------- Run | Scr Mat Traps Triggered 1 | . 1 Indirectly . | . . Trap Hack Attempts . | . . Triggered . | . . Disarmed 4 | . 4 Reprogrammed . | . . Reused . | . . Traps Extracted . | . . Installed . | . . Triggered . | . . Machines | -11 -10 ---------- Run | Scr Mat Machines Disabled . | . . Max in Single Turn . | . . Machines Sabotaged . | . . Garrisons Compromised . | . . Overloaded Fab Kills . | . . Fab Network Shutdowns . | . . Hacking | -11 -10 --------- Run | Scr Mat Machines Accessed 4 | . 4 Terminals 3 | . 3 Fabricators . | . . Repair Stations 1 | . 1 Recycling Units . | . . Scanalyzers . | . . Garrison Access . | . . Total Hacks 12 | . 12 Successful 9 | . 9 Failed 3 | . 3 Catastrophic . | . . Database Lockouts . | . . Manual 4 | . 4 Terminals 9 | . 9 Fabricators . | . . Repair Stations 3 | . 3 Recycling Units . | . . Scanalyzers . | . . Garrison Access . | . . Terminal Hacks 7 | . 7 Part Schematic 2 | . 2 Locate Traps 1 | . 1 Disarm Traps 1 | . 1 Dispatch Records 1 | . 1 Zone Layout 2 | . 2 Fabricator Hacks . | . . Repair Station Hacks 2 | . 2 Scan Component 1 | . 1 Repair 1 | . 1 Recycling Unit Hacks . | . . Scanalyzer . | . . Garrison Access Hacks . | . . Unauthorized Hacks . | . . Terminals . | . . Fabricators . | . . Repair Stations . | . . Recycling Units . | . . Scanalyzers . | . . Garrison Access . | . . Data Cores Recovered . | . . Used . | . . Hacking Detections 2 | . 2 Full Trace Events . | . . Feedback Events . | . . Feedback Blocked . | . . Robot Schematics Acquired . | . . Robots Built . | . . Matter . | . . Time . | . . Total Robot Build Rating . | . . Part Schematics Acquired 2 | . 2 Parts Built . | . . Matter . | . . Time . | . . Total Part Build Rating . | . . Parts Repaired 1 | . 1 Time 26 | . 26 Parts Recycled . | . . Recycled Matter . | . . Retrieved Matter . | . . Retrieved Components . | . . Parts Scanalyzed . | . . Part Schematics Acquired . | . . Parts Damaged . | . . Bothacking | -11 -10 ------------ Run | Scr Mat Used RIF Installer . | . . Robots Hacked . | . . Non-combat . | . . Combat . | . . Robot Hacks Applied . | . . Relay Couplers Released . | . . Robots Rewired . | . . Allies Hacked . | . . Hacks Repelled . | . . Allies | -11 -10 -------- Run | Scr Mat Total Allies . | . . Largest Group . | . . Highest-Rated Group . | . . Highest-Rated Ally . | . . Total Orders . | . . Ally Attacks . | . . Total Damage . | . . Kills . | . . Allies Corrupted . | . . Allies Melted . | . . Intel | -11 -10 ------- Run | Scr Mat Robot Analysis Total . | . . Derelict Logs Recovered . | . . Drone Launches . | . . Drone Recoveries . | . . Exploration | -11 -10 ------------- Run | Scr Mat Turns Passed 495 | 80 415 Spaces Moved 289 | 73 216 Core 2 | 2 . Treads 73 | . 73 Legs . | . . Wheels 214 | 71 143 Hover . | . . Flight . | . . Fastest Speed 50 | 50 90 Average Speed 107 | 88 113 Slowest Speed 160 | 90 160 Overloaded Moves . | . . Propulsion Burnouts . | . . Robots Hopped . | . . Cave-ins Triggered . | . . Exploration Rate (%) 22 | 4 41 Regions Visited 1 Branch Regions . Pre-discovered Areas . | . . Known Exits Taken . | . . Unknown Exits Taken 1 | 1 . Scrap Searched . | . . Spaces Dug . | . . Terrain Destroyed . | . . Melee . | . . Projectile . | . . AOE . | . . Actions | -11 -10 --------- Run | Scr Mat Total 385 | 84 301 Wait 17 | . 17 Move 288 | 72 216 Hop . | . . Pick Up 11 | 5 6 Fast Attach 7 | 6 1 Attach 3 | . 3 Detach . | . . Swap 7 | 1 6 Drop . | . . Fire 17 | . 17 Melee 35 | . 35 Ram . | . . Kick . | . . Crush . | . . Escape Stasis . | . . Rewire . | . . Trap . | . . Miscellaneous . | . . Route ------- -11/Scrapyard -10/Materials (discovered 2 exits: [*Mat] / [*Min]) History --------- Turn | Location | Event 7 | -11/Scrapyard | Discovered new exit (range 16) 81 | -11/Scrapyard | Entered Materials 159 | -10/Materials | Discovered new exit (range 10) 251 | -10/Materials | Discovered new exit (range 16) 309 | -10/Materials | Core integrity fell below 50% 317 | -10/Materials | Build established: Mutant 349 | -10/Materials | Lost 3 parts (1p1n1w) 476 | -10/Materials | Repaired Ion Engine 490 | -10/Materials | Core integrity fell below 20% 496 | -10/Materials | Destroyed by S-10 Pest with Light Assault Rifle Last Messages --------------- Downloaded map data. 00450_ Connecting with Repair Station... >>Scan(Ion Engine) Scanning Ion Engine... Ready to Repair: Ion Engine Rating: 1 Time: 26 >>Repair Repairing Ion Engine... ETC: 26 00466_ Hammer follow-up attack on G-34 Mercenary. 00470_ Hammer destroyed. 00472_ Destroyed Heat Sink. 00472_ G-34 Mercenary system corrupted by crushing effect. 00473_ G-34 Mercenary system terminally corrupted. 00473_ Aluminum Leg fried. 00476_ Repair station completes Ion Engine repairs. 00489_ U-05 Engineer lays Concrete. 00492_ Lgt. Treads destroyed. Map ----- +----------------------------------------------------+ | ??????????????????????????????????? | | ??????????????????????????????????? | | ??????????????????????????????????? | | ??????????????????????????????????? | | ??????????????????????????????????? | | ??????????????????????????????????? | | ?????????????????????????????#????? | | ?????????????????????????????# ?! | | ?????????????????????????????# | | ?????????????????????????????# | | ?????????????????????????????# | | ??????????????????????######## | | ??????????????????????# | | ??????????????????????# | | ??????????????????????# """ """ | | ??????#""" #????????# """ """ | | ??????# #????????# """ """ | | ??????# #????????# | | ?###################### | | ?# # ## """ | | ?# # """ """ ## !! """ | | ?# """ # """ """ ## ! """ | | ?# """ # """ """ ## | | ?# """ # ## | | ?# ###+######### ############ | | ?# g/@s = t u t # ! #?#? | | ?# """ ##gs=% + ###? | | ?# "R* ## s########### # ?? | | ?# """ ## #?????????# ###? | | ?# ## ##??###???# #?#? | | ?######/## %####T#######+######## | | ????# # | | ????# T + | | ?######+## ##+##### ########### | | ?# ###### ## # """ #??? | | ?# #????# """ ## / """ #??? | | ?# #????# """ ## # """ #??? | | ?# #????# """ + # #??? | | ?# #????# ##### #??? | | ?#" #????# """ #???# #??? | | ?#T #????# """ #???########??? | | ?#" #????# """ #?????????????? | | ?# #????# #?????????????? | | ?#########????#######?????????????? | | | | | | | | | | | | | +----------------------------------------------------+ Best States ------------- Heat Dissipation 25 Energy Generation 10 Energy Capacity 250 Matter Stores 300 Matter Capacity 300 Sight Range 16 Terrain Scan Density 10 Evasion (%) 44 Recoil Reduction 2 Item Schematics ----------------- Wheel | -10/Materials | Hacked Lgt. Treads | -10/Materials | Hacked Robot Schematics ------------------ None Fabricated ------------ Nothing Alien Tech Used ----------------- None Achievements -------------- None Challenges ------------ None Game ------ Seed CorruptionDispersionGuard Manual? 0 Play Time 00:10:00 Cumulative 12.6 hours Start 2020.05.28 @ 11:11:11 End 2020.05.28 @ 11:18:16 Sessions 1 Manual Loads 0 Difficulty Rogue Special Mode None Game No. 12 Rogue 12 Adventurer 0 Explorer 0 Win Type - Total 0 Types 0/0/0/0/0/0/0 Lore% 12 Gallery% 19 Achievement% 16 Wizard Run 0 Options --------- ASCII 1 Keyboard 1 Movement Numpad Keybinds 0 Fullscreen 1 Font 18/SmallcapsGlow Map View 76x50 Tactical HUD 1 Map Filters NONE Filters NONE Steam 1 RUN: 15638519-6b23-4b48-8a21-677a40b07998